{"text_format":"3","workbook":"xlsx","n_sheets":2,"sheets":["Ausgaben-u.Finanzierungsplan","Anlage Personal"],"not_rendered":{"defined_names":2},"read":"whole","date_system":"1900"}

{"sheet":"Ausgaben-u.Finanzierungsplan","index":0,"n_rows":32,"n_cols":18,"rows_kept":32,"merged":[[3,0,3,4],[3,5,3,15],[5,0,5,4],[5,5,5,15],[6,0,6,15],[7,0,7,15],[8,0,10,3],[8,4,8,7],[8,8,8,11],[8,12,8,15],[9,4,9,7],[9,8,9,11],[9,12,9,15],[10,4,10,7],[10,8,10,11],[10,12,10,15],[11,0,11,15],[12,0,13,3],[12,4,12,7],[12,8,12,11],[12,12,12,15],[13,4,13,7],[13,8,13,11],[13,12,13,15],[14,0,14,3],[14,4,14,7],[14,8,14,11],[14,12,14,15],[15,0,15,3],[15,4,15,7],[15,8,15,11],[15,12,15,15],[16,0,16,3],[16,4,16,7],[16,8,16,11],[16,12,16,15],[17,0,17,3],[17,4,17,7],[17,8,17,11],[17,12,17,15],[18,0,18,3],[18,4,18,7],[18,8,18,11],[18,12,18,15],[19,16,20,20],[20,0,21,3],[20,4,20,7],[20,8,20,11],[20,12,20,15],[21,4,21,7],[21,8,21,11],[21,12,21,15],[23,0,24,3],[23,4,23,7],[23,8,23,11],[23,12,23,15],[24,4,24,7],[24,8,24,11],[24,12,24,15],[25,0,25,15],[26,0,27,15],[30,0,30,4],[30,12,30,15]]}
["Landeshauptstadt Dresden - Jugendamt",{"$nulls":14},"Förderung von Trägern der freien Jugendhilfe"]
[]
["Aktenzeichen",{"$nulls":4},"Zuwendungsempfänger"]
[]
["Bewilligungszeitraum",{"$nulls":4},"Angebotsbezeichnung"]
[]
["Ausgaben- und Finanzierungsplan",{"$nulls":16},"PC-Ausfüller: Fett umrandete Felder ausfüllen! Die anderen Felder enthalten Zellenverknüpfungen oder Formeln."]
["Der Bewilligungsbehörde ist ein Ausgaben- und Finanzierungsplan vorzulegen, wenn die Bewilligungssumme von der Antragssumme abweicht und/oder sich eine Mitteilungspflicht nach Nr. 5.1, 5.2, 5.6 ANBest-P ergibt."]
["Ausgaben",{"$nulls":3},"Sachausgaben",{"$nulls":3},"Personalausgaben",{"$nulls":3},"Gesamtausgaben"]
[{"$nulls":4},"in Euro",{"$nulls":3},"in Euro",{"$nulls":3},"in Euro"]
[{"$nulls":12},{"$f":"SUM(E11:L11)","v":0}]
["Personalausgaben: Es sind nur die Ausgaben im Zusammenhang mit den geförderten Personen darzustellen. Eine Untersetzung der Personalausgaben (siehe Anlage Personal) und das Einreichen weiterer Unterlagen muss nur dann erfolgen, wenn eine Anzeige- und Genehmigungspflicht besteht (siehe Zuwendungsbescheid)."]
["Finanzierung",{"$nulls":3},"Sachausgaben",{"$nulls":3},"Personalausgaben",{"$nulls":3},"Finanzierung gesamt"]
[{"$nulls":4},"in Euro",{"$nulls":3},"in Euro",{"$nulls":3},"in Euro"]
["Jugendamt Dresden",{"$nulls":11},{"$f":"I15+E15","v":0}]
["weitere öffentliche Mittel*",{"$nulls":11},{"$f":"SUM(E16:L16)","v":0}]
["sonstige Finanzierungsquellen",{"$nulls":11},{"$f":"SUM(E17:L17)","v":0}]
["Eigenmittel",{"$nulls":11},{"$f":"SUM(E18:L18)","v":0}]
["gesamt",{"$nulls":3},{"$f":"SUM(E15:G18)","v":0},{"$nulls":3},{"$f":"SUM(I15:K18)","v":0},{"$nulls":3},{"$f":"SUM(E19:L19)","v":0}]
[{"$nulls":7},{"$f":"IF(E11<>E19,\"Fehler: Ausgaben ungleich Finanzierung\",\"\")","v":""},{"$f":"IF(I11<>I19,\"Fehler: Ausgaben ungleich Finanzierung\",\"\")","v":""},{"$nulls":7},"Fehlermeldung erst nach dem Ausfüllen beachten!"]
["Eigenleistungen",{"$nulls":3},"Anzahl der Stunden",{"$nulls":3},{"v":9.35,"d":"9.35 €"},{"$nulls":3},"in EUR"]
[{"$nulls":8},"je Stunde",{"$nulls":3},{"$f":"E22*I21","v":0}]
[]
["Eigenanteil an den Gesamtausgaben",{"$nulls":3},"Eigenmittel in %",{"$nulls":3},"Eigenleistungen in %",{"$nulls":3}," = Eigenanteil in %"]
[{"$nulls":4},{"$f":"ROUND(M18*100/M11,1)","v":{"$error":"#DIV/0!"}},{"$nulls":3},{"$f":"ROUND(M22*100/(M11+M22),1)","v":{"$error":"#DIV/0!"}},{"$nulls":3},{"$f":"ROUND((M22+M18)*100/(M11+M22),1)","v":{"$error":"#DIV/0!"}}]
["* sofern neben der Zuwendung weitere öffentliche Mittel  in die Finanzierung des geförderten Angebotes einfließen, sind diese hier darzustellen (für wen/was und in welcher Höhe (z. B. vom Landesjugendamt, KSV, SMS, SMK, Bund, ARGE, EU, LHD)"]
[]
[]
[]
[]
[]
["Ort, Datum",{"$nulls":5},"rechtsverbindliche Unterschrift(en) ",{"$nulls":5},"in Block-/PC-Schrift:"]

{"sheet":"Anlage Personal","index":1,"n_rows":17,"n_cols":8,"rows_kept":17,"merged":[[3,0,4,0],[3,1,4,1],[3,2,4,2],[3,3,3,4],[3,5,4,5],[3,6,4,6],[13,0,13,4],[13,5,14,5],[13,6,14,6]]}
["Landeshauptstadt Dresden - Jugendamt",null,"Förderung von Trägern der freien Jugendhilfe",null,null,"Aktenzeichen:",{"$f":"'Ausgaben-u.Finanzierungsplan'!A4","v":0}]
[]
["Anlage zum Ausgaben- und Finanzierungsplan - Angaben zu den geförderten Fachkräften"]
["Name, Vorname","Stellenbezeichnung","beschäftigt von/bis          \n(im Förderjahr)","wöch. Arbeitszeit in Stunden",null,"Gesamtausgaben \nin EUR","Fördermitteleinsatz\nin EUR"]
[{"$nulls":3},"Wochenarbeitszeit ","Jahres-      durch-        schnitt"]
[{"$nulls":7},"Berechnungshilfe für die Ermittlung des Jahresdurchschnitts im Formblatt \"Angaben zur Fachkraft\""]
[]
[]
[]
[]
[]
[]
[{"$nulls":7},"Fehlermeldungen erst nach dem Ausfüllen beachten!"]
["Berufsgenossenschaft gesamt"]
[{"$nulls":4}," (betrifft in der Regel das Vorjahr, fällt jedoch im Förderzeitraum nach dem 28.2. an)",null,null,{"$f":"IF(G17<>'Ausgaben-u.Finanzierungsplan'!I15,\"Fehler: Betrag entspricht nicht dem Finanzierungsplan\",\"\")","v":""}]
[{"$nulls":3},"h/W","VK"]
[null,null,"Summe",{"$f":"SUM(E6:E13)","v":0},{"$f":"ROUND(D17/40,2)","v":0},{"$f":"SUM(F6:F14)","v":0},{"$f":"SUM(G6:G14)","v":0},{"$f":"IF(F17<>'Ausgaben-u.Finanzierungsplan'!I11,\"Fehler: Die Gesamtausgaben entsprechen nicht den Angaben im Ausgabenplan\",\"\")","v":""}]